bitfinex/quotes_ETHUSD_20220119
["timestamp","ask_amount","ask_price","bid_price","bid_amount"]
[1642551584017,0.3,3158.2,3157.8,0.00625265]
[1642551585014,0.3,3158.2,3157.7,0.00682108]
[1642551585414,0.79186,3158.1,3157.7,0.00682108]
[1642551585616,2.75892535,3158.6,3157.7,3.20059636]
[1642551585816,0.01149428,3158.1,3157.8,5.15]
[1642551586017,0.01149428,3158.1,3157.8,5.15625265]
[1642551586317,0.01149428,3158.1,3157.9,0.00568423]
[1642551586524,2.63567368,3158.1,3157.9,0.00568423]
[1642551586727,2.63567368,3158.1,3157.8,0.00625265]
[1642551586728,3.3765,3158.0,3157.8,0.00625265]
[1642551586926,0.1265,3158.0,3157.8,0.00625265]
[1642551587158,0.7265,3158.0,3157.8,0.00625265]
[1642551587359,0.69201716,3158.0,3157.8,0.00625265]
[1642551587756,0.79203,3157.9,3157.7,0.00682108]
[1642551587956,3.1680885,3157.9,3157.7,0.00682108]
[1642551588363,0.3,3157.8,3157.7,0.00682108]
[1642551588760,0.3,3157.8,3157.4,0.00852635]
[1642551588961,0.792023,3157.7,3157.2,0.00966319]
[1642551589561,1.092023,3157.7,3157.2,0.00966319]
[1642551589760,1.884053,3157.7,3157.1,0.01023162]
[1642551589961,0.79203,3157.7,3157.1,0.01023162]
[1642551590164,4.4392545,3158.1,3157.2,0.1581]
[1642551590165,0.01149428,3158.1,3157.2,0.1581]
[1642551590367,0.01149428,3158.1,3157.8,0.01228265]
[1642551590808,0.00113685,3159.1,3157.9,0.00568423]
[1642551591007,0.1265,3159.0,3158.0,0.03459706]
[1642551591209,0.79172,3158.7,3158.0,0.03459706]
[1642551591412,0.1265,3158.6,3158.1,0.00454738]
[1642551591611,0.4265,3158.6,3158.1,0.00454738]
[1642551591809,0.4265,3158.6,3157.9,0.00568423]
[1642551592212,0.79187,3158.4,3158.0,2.37670604]
[1642551592411,1.8837625,3158.4,3158.0,2.37670604]
[1642551592611,0.3,3158.3,3158.1,0.00454738]
[1642551592810,0.4265,3158.3,3158.1,0.00454738]
[1642551593612,1.21841,3158.3,3158.1,0.00454738]
[1642551593812,1.21841,3158.3,3157.8,0.00625265]
[1642551594012,0.79191,3158.2,3157.8,0.00625265]
[1642551594215,0.7919077,3158.1,3157.8,0.00625265]
[1642551594577,0.3,3158.0,3157.8,0.00625265]
[1642551595656,1.09191,3158.0,3157.8,0.00625265]
[1642551595856,1.10339271,3158.0,3157.8,0.00625265]
[1642551596559,1.10339271,3158.0,3157.9,2.68920339]
[1642551596958,1.10339271,3158.0,3157.9,2.69488762]
[1642551597759,1.8838477,3158.1,3158.0,2.29200464]
[1642551597960,4.83220128,3158.1,3158.0,2.29200464]
[1642551598159,4.83220128,3158.1,3158.0,2.29712045]
[1642551598413,1.8838477,3158.1,3158.0,2.29712045]
[1642551598612,0.3,3158.1,3158.0,2.29712045]
[1642551598813,1.6,3158.1,3158.0,2.29712045]
[1642551599013,4.3765,3158.1,3158.0,2.29712045]
[1642551599212,3.3765,3158.1,3158.0,2.29712045]
[1642551599414,4.3765,3158.1,3158.0,4.98632384]
[1642551599715,5.9603477,3158.1,3158.0,4.98632384]
[1642551600112,1.7103477,3158.1,3158.0,4.98632384]
[1642551600315,2.1653477,3158.1,3158.0,4.98632384]
[1642551600717,1.5839,3158.2,3158.0,7.93612896]
[1642551600916,0.7919,3158.3,3158.0,4.98632384]
[1642551601114,0.7919,3158.3,3158.1,0.00454738]
[1642551601316,6.42488581,3158.7,3158.6,1.92771249]
[1642551601519,5.21908581,3158.7,3158.2,2.9]
[1642551601915,0.3,3158.6,3158.3,0.00341054]
[1642551602363,1.09179,3158.6,3158.3,0.00341054]
[1642551603161,1.09179,3158.6,3158.3,2.69261393]
[1642551603566,1.09179,3158.6,3158.4,0.00284211]
[1642551604167,0.3,3158.5,3158.4,0.00284211]
[1642551604366,2.375637,3158.4,3158.2,0.00397896]
[1642551604667,0.3,3158.3,3158.2,0.00397896]
[1642551605265,0.3,3158.3,3158.1,0.00454738]
[1642551605467,1.09187,3158.3,3158.1,0.00454738]
[1642551605666,1.39187,3158.3,3158.1,0.00454738]
[1642551605907,1.09187,3158.3,3158.1,0.00454738]
[1642551606107,1.39187,3158.3,3158.1,0.00454738]
[1642551606507,1.39187,3158.3,3158.1,1.58817998]
[1642551606909,1.39187,3158.3,3158.2,0.00397896]
[1642551607308,1.09187,3158.3,3158.2,0.00397896]
[1642551607908,1.09187,3158.3,3158.1,2.37670604]
[1642551607909,1.09187,3158.3,3158.1,2.38125342]
[1642551608108,1.09187,3158.3,3158.2,0.00397896]
[1642551609213,3.2,3158.6,3158.4,2.18373999]
[1642551609412,3.5,3158.6,3158.4,2.18373999]
[1642551609662,3.5,3158.6,3158.5,0.00227369]
[1642551609663,3.2,3158.6,3158.5,0.00227369]
[1642551609863,3.2,3158.6,3158.5,2.60666524]
[1642551610066,3.2,3158.6,3158.5,0.00227369]
[1642551611164,3.8,3158.6,3158.5,0.00227369]
[1642551611365,3.5,3158.6,3158.5,0.00227369]
[1642551614224,4.59179,3158.6,3158.5,0.00227369]
[1642551615428,4.29179,3158.6,3158.5,3.21757192]
[1642551615629,3.5,3158.6,3158.5,3.21757192]
[1642551615827,3.2,3158.6,3158.5,3.21757192]
[1642551616129,3.2,3158.6,3158.5,0.00227369]
[1642551616130,3.5,3158.6,3158.5,0.00227369]
[1642551616528,0.79169,3158.8,3158.5,0.00227369]
[1642551617362,0.31365487,3159.1,3158.6,4.95]
[1642551617765,0.31365487,3159.1,3158.7,2.7394972]
[1642551617962,0.31365487,3159.1,3158.7,0.00113684]
[1642551618467,1.10526487,3159.1,3158.7,0.05986368]
[1642551618666,1.10526487,3159.1,3158.7,0.07758738]
[1642551618866,1.10526487,3159.1,3158.9,3.21539019]
[1642551619068,1.70526487,3159.1,3158.9,3.21539019]
[1642551619567,1.40526487,3159.1,3158.9,3.21539019]
[1642551619767,0.455,3159.9,3159.0,2.65870043]
[1642551619967,4.10865315,3160.0,3159.0,2.65870043]
[1642551620174,0.00170527,3159.2,3159.0,0.996]
[1642551620570,0.79147,3160.1,3159.2,6.62287104]
[1642551620821,8.0437507,3161.0,3160.1,1.10886609]
[1642551620822,0.126854,3161.0,3160.1,1.10886609]
[1642551621023,0.126854,3161.0,3160.9,5.2127417]
[1642551621024,5.4e-05,3161.0,3160.9,5.2127417]
[1642551621222,5.4e-05,3161.0,3160.9,5.9467417]
[1642551621420,0.1265,3161.7,3160.9,0.734]
[1642551621719,0.01250532,3161.3,3160.9,0.734]
[1642551621919,0.1265,3161.2,3160.9,0.734]
[1642551622119,0.01193689,3161.2,3160.9,0.734]
[1642551622318,0.01193689,3161.2,3160.4,0.0018004]
[1642551622319,0.01136847,3161.1,3160.6,1.60663668]
[1642551622721,0.01080005,3161.0,3160.6,1.60663668]
[1642551623218,0.13673162,3160.9,3160.6,1.60663668]
[1642551623423,1.53342597,3160.8,3160.6,1.60663668]
[1642551623622,1.54308917,3160.8,3160.6,1.60663668]
[1642551623824,4.25909478,3160.7,3160.5,2.6888757]
[1642551624023,3.1265,3160.6,3160.5,2.6888757]
[1642551624223,4.43502635,3160.6,3160.5,2.6888757]
[1642551625065,4.43502635,3160.6,3160.4,0.0018004]
[1642551625263,5.22646635,3160.6,3160.4,0.0018004]
[1642551625465,0.00795793,3160.5,3160.4,0.0018004]
[1642551625662,0.13445793,3160.5,3160.4,0.0018004]
[1642551626067,2.43445793,3160.5,3160.4,0.0018004]
[1642551627866,3.23245793,3160.5,3160.4,0.0018004]
[1642551628071,7.13245793,3160.5,3160.4,0.0018004]
[1642551628317,4.85,3160.4,3159.9,2.6888757]
[1642551628522,3.92964107,3160.1,3159.9,2.6888757]
[1642551628722,5.0765,3160.0,3159.9,2.7010974]
[1642551628921,5.08161581,3160.0,3159.9,2.7010974]
[1642551629121,5.08161581,3160.0,3159.9,0.0122217]
[1642551629324,4.08161581,3160.0,3159.9,0.0122217]
[1642551629521,0.13161581,3160.0,3159.9,0.0122217]
[1642551629923,0.00511581,3160.0,3159.9,0.0122217]
[1642551631125,0.00511581,3160.0,3159.9,2.70095011]
[1642551631728,0.00511581,3160.0,3159.9,5.57932377]
[1642551631925,0.00511581,3160.0,3159.9,6.75095011]
[1642551632161,0.00511581,3160.0,3159.9,4.0622217]
[1642551632363,0.00511581,3160.0,3159.9,5.17081438]
[1642551632564,0.00511581,3160.0,3159.9,6.17081438]
[1642551632761,0.00511581,3160.0,3159.9,7.85901278]
[1642551632962,3.53036652,3161.2,3160.0,5.21023162]
[1642551632963,2.73918652,3161.2,3160.0,5.21023162]
[1642551633162,2.73918652,3161.2,3160.0,8.08860528]
[1642551633163,1.1543,3161.2,3160.0,8.08860528]
[1642551633369,0.00511581,3160.9,3160.0,8.08860528]
[1642551633566,0.00511581,3160.9,3160.0,0.01023162]
[1642551633766,0.00454739,3160.8,3160.0,2.66816241]
[1642551634065,1.28728339,3160.6,3160.0,0.01023162]
[1642551634467,1.28728339,3160.6,3160.1,2.6881984]
[1642551634468,0.00284212,3160.5,3160.1,2.6881984]
[1642551634868,0.0022737,3160.4,3160.1,2.6881984]
[1642551635268,0.00170527,3160.3,3160.1,2.6881984]
[1642551635567,0.00113685,3160.2,3160.1,2.6881984]
[1642551636211,0.00113685,3160.2,3160.1,3.6881984]
[1642551636412,0.00113685,3160.2,3160.1,2.6881984]
[1642551636613,0.00113685,3160.2,3160.1,6.42678142]
[1642551636812,0.00113685,3160.2,3160.1,8.67678142]
[1642551637012,0.00113685,3160.2,3160.1,6.42678142]
[1642551637212,0.00113685,3160.2,3160.1,5.42678142]
[1642551638012,0.00113685,3160.2,3160.1,6.42678142]
[1642551638417,0.00113685,3160.2,3160.1,8.17471192]
[1642551638619,0.00113685,3160.2,3160.1,7.39668156]
[1642551638620,3.685e-05,3160.2,3160.1,7.39668156]
[1642551638818,3.685e-05,3160.2,3160.1,14.20331824]
[1642551639019,0.1265,3161.7,3160.2,5.2]
[1642551639217,0.1265,3161.7,3160.3,7.11468453]
[1642551639573,0.13502635,3161.7,3160.4,1.0]
[1642551639762,0.13502635,3161.7,3160.5,3.30198752]
[1642551639962,0.13502635,3161.7,3160.6,0.79096]
[1642551640161,0.13502635,3161.7,3160.7,3.21134401]
[1642551641363,0.13502635,3161.7,3160.8,2.6881984]
[1642551641563,0.13502635,3161.7,3160.9,3.33858852]
[1642551643418,0.13502635,3161.7,3161.0,2.6881984]
[1642551643617,0.13502635,3161.7,3161.1,2.73521847]
[1642551644421,0.13502635,3161.7,3161.0,2.6900049]
[1642551644619,0.13502635,3161.7,3161.2,2.6881984]
[1642551645221,0.13502635,3161.7,3161.1,0.0018004]
[1642551646121,0.13502635,3161.7,3161.1,2.6899988]
[1642551646721,0.13502635,3161.7,3161.1,0.0018004]
[1642551647563,0.13502635,3161.7,3161.1,2.6899988]
[1642551649264,0.13502635,3161.7,3161.1,2.7004225]
[1642551650064,0.13502635,3161.7,3161.2,2.6881984]
[1642551652314,0.00852635,3161.7,3161.2,2.6881984]
[1642551653719,0.00852635,3161.7,3161.2,2.6907195]
[1642551656770,4.15029023,3162.1,3161.7,0.01705269]
[1642551656968,3.85029023,3162.1,3161.7,0.01705269]
[1642551657269,0.00170527,3162.0,3161.7,0.01705269]
[1642551657468,1.58366527,3162.0,3161.7,0.01705269]
[1642551657767,0.00113685,3161.9,3161.7,0.01705269]
[1642551658172,0.00113685,3161.9,3161.8,2.6881984]
[1642551659315,0.00113685,3161.9,3161.8,2.73406374]
[1642551659713,0.30113685,3161.9,3161.8,2.73406374]
[1642551660317,0.00113685,3161.9,3161.8,2.73406374]
[1642551670064,0.00113685,3161.9,3161.8,2.74448744]
[1642551674422,0.00113685,3161.9,3161.8,2.74700854]
[1642551675522,0.00113685,3161.9,3161.8,5.44056859]
[1642551675922,0.00113685,3161.9,3161.8,2.74700854]
[1642551679774,0.00113685,3161.9,3161.8,2.74700374]
[1642551687676,0.1265,3162.2,3161.8,2.74700374]
[1642551688074,1.5842279,3162.1,3161.8,2.74700374]
[1642551688323,1.8842279,3162.1,3161.8,2.74700374]
[1642551688527,0.00170527,3162.0,3161.8,2.74700374]
[1642551688727,0.1265,3161.9,3161.8,2.74700374]
[1642551688927,0.12763685,3161.9,3161.8,2.74700374]
[1642551689128,0.00113685,3161.9,3161.8,2.74700374]
[1642551689330,0.00113685,3161.9,3161.8,0.05880534]
[1642551691028,0.30113685,3161.9,3161.8,0.05880534]
[1642551699968,0.00113685,3161.9,3161.8,0.05880534]
[1642551705228,0.00113685,3161.9,3161.8,2.7461915]
[1642551709972,0.00113685,3161.9,3161.8,4.33740671]
[1642551711223,1.5819676,3162.0,3161.8,4.33740671]
[1642551711423,1.5819676,3162.0,3161.8,2.7461915]
[1642551711424,1.7084676,3162.0,3161.8,2.7461915]
[1642551712624,1.5819676,3162.0,3161.9,2.68738616]
[1642551712825,2.5819676,3162.0,3161.9,2.68738616]
[1642551713226,2.8819676,3162.0,3161.9,2.68738616]
[1642551713431,2.8819676,3162.0,3161.9,2.69321]
[1642551713631,2.8819676,3162.0,3161.9,2.742587]
[1642551717171,1.5819676,3162.0,3161.9,2.742587]
[1642551719226,2.1819676,3162.0,3161.9,2.742587]
[1642551719428,1.5819676,3162.0,3161.9,2.742587]
[1642551719829,1.8819676,3162.0,3161.9,2.742587]
[1642551720031,1.5819676,3162.0,3161.9,2.742587]
[1642551720235,0.79097,3162.0,3161.9,2.742587]
[1642551721831,0.7909447,3162.1,3161.9,2.742587]
[1642551722277,0.85863801,3162.3,3162.0,2.54353025]
[1642551722477,0.4790207,3162.3,3162.0,2.54353025]
[1642551722676,0.00113685,3162.1,3161.9,6.45443423]
[1642551722877,0.00113685,3162.1,3162.0,5.25543936]
[1642551723679,0.00113685,3162.1,3162.0,6.45966144]
[1642551723879,0.00113685,3162.1,3162.0,7.68574257]
[1642551724680,3.20113685,3162.1,3162.0,7.68574257]
[1642551725080,3.20113685,3162.1,3162.0,10.07256539]
[1642551725680,3.20113685,3162.1,3162.0,11.51076536]
[1642551725924,0.0018004,3162.7,3162.1,5.2]
[1642551726122,0.0018004,3162.7,3162.2,4.17837366]
[1642551726322,0.00284211,3162.6,3162.2,4.17837366]
[1642551726725,0.00227369,3162.5,3162.2,4.33647366]
[1642551727126,0.00170527,3162.4,3162.2,4.33647366]
[1642551727426,0.0018004,3162.7,3162.3,8.86891366]
[1642551727626,0.0018004,3162.7,3162.6,6.80523317]
[1642551728025,0.0018004,3162.7,3162.6,10.02599743]
[1642551728828,0.0018004,3162.7,3162.6,11.10815042]
[1642551730273,0.0018004,3162.7,3162.6,5.90815042]
[1642551733075,3.2018004,3162.7,3162.6,5.90815042]
[1642551733322,3.2018004,3162.7,3162.6,6.90815042]
[1642551733525,3.2018004,3162.7,3162.6,5.90815042]
[1642551733929,3.2018004,3162.7,3162.6,5.91175492]
[1642551734129,0.0018004,3162.7,3162.6,5.94859996]
[1642551734327,0.0018004,3162.7,3162.6,5.96335126]
[1642551734528,0.0018004,3162.7,3162.6,8.44095126]
[1642551734727,0.0018004,3162.7,3162.6,11.70405126]
[1642551735127,0.0018004,3162.7,3162.6,9.05405126]
[1642551735332,0.1264,3164.1,3162.7,5.2036008]
[1642551735528,0.1264,3164.1,3162.8,5.1320457]
[1642551735729,0.01080004,3164.0,3162.8,5.1320457]
[1642551736130,0.01023162,3163.9,3162.8,5.1320457]
[1642551736530,0.00966319,3163.8,3162.8,4.3416157]
[1642551736733,0.00966319,3163.8,3163.1,1.40561032]
[1642551736932,0.00909477,3163.7,3163.2,2.67364138]
[1642551737376,0.00852635,3163.6,3163.2,2.67364138]
[1642551737678,0.9168672,3164.1,3163.3,3.68738616]
[1642551737679,0.00795792,3163.5,3163.3,3.68738616]
[1642551737875,0.00795792,3163.5,3163.4,5.65433099]
[1642551738077,7.45,3164.2,3163.4,3.00433099]
[1642551738479,0.01136846,3164.1,3163.4,3.00433099]
[1642551738679,0.01136846,3164.1,3163.4,5.69171715]
[1642551738880,0.01080004,3164.0,3163.4,5.69171715]
[1642551739282,0.01023162,3163.9,3163.4,5.69171715]
[1642551739480,0.01023162,3163.9,3163.3,1.0018065]
[1642551739481,0.01023162,3163.9,3163.5,2.68738616]
[1642551739683,0.00966319,3163.8,3163.5,2.68738616]
[1642551740080,0.00909477,3163.7,3163.5,2.68738616]
[1642551740481,0.00852635,3163.6,3163.5,2.68738616]
[1642551741122,0.00852635,3163.6,3163.4,2.68918416]
[1642551741523,0.1264,3164.2,3163.5,2.58025087]
[1642551741926,0.01136846,3164.1,3163.5,2.58025087]
[1642551742124,0.01136846,3164.1,3163.5,5.25965768]
[1642551742325,0.01080004,3164.0,3163.5,2.68738616]
[1642551742724,0.01023162,3163.9,3163.6,2.58059935]
[1642551742927,0.01023162,3163.9,3163.6,2.68738616]
[1642551743129,0.00966319,3163.8,3163.6,2.68738616]
[1642551743530,0.00909477,3163.7,3163.6,2.68738616]
[1642551744131,0.00909477,3163.7,3163.5,2.68738616]
[1642551744585,0.79047,3164.0,3163.5,2.68738616]
[1642551744586,0.00852635,3163.6,3163.5,2.68738616]
[1642551745379,0.00852635,3163.6,3163.5,5.35621459]
[1642551745578,0.00852635,3163.6,3163.5,2.68738616]
[1642551746479,1.48399749,3163.6,3163.5,2.68738616]
[1642551750935,0.00852635,3163.6,3163.5,2.68738616]
[1642551753182,0.00852635,3163.6,3163.5,5.40167489]
[1642551754687,0.00852635,3163.6,3163.5,5.39506441]
[1642551754891,0.00852635,3163.6,3163.5,2.68738616]
[1642551755187,0.00852635,3163.6,3163.5,5.38296997]
[1642551755823,0.00852635,3163.6,3163.5,2.7280501]
[1642551774984,0.7905,3163.9,3163.5,2.7280501]
[1642551775386,0.00966319,3163.8,3163.5,2.7280501]
[1642551775588,0.79055,3163.7,3163.5,2.7280501]
[1642551775787,0.79964477,3163.7,3163.5,2.7280501]
[1642551775985,0.00852635,3163.6,3163.5,2.7280501]
[1642551776187,0.00852635,3163.6,3163.5,0.04066394]
[1642551782584,0.00852635,3163.6,3163.5,1.64589711]
[1642551785929,0.00852635,3163.6,3163.5,4.33110208]
[1642551786330,0.00852635,3163.6,3163.5,1.64589711]
[1642551789235,0.00852635,3163.6,3163.5,0.04066394]
[1642551790480,0.00852635,3163.6,3163.5,1.64959827]
[1642551791488,0.00852635,3163.6,3163.5,4.33492786]
[1642551792188,0.00852635,3163.6,3163.5,1.64959827]
[1642551792588,0.00852635,3163.6,3163.5,4.33492786]
[1642551793189,0.00852635,3163.6,3163.5,2.72599353]
[1642551795235,0.00852635,3163.6,3163.5,4.33469794]
[1642551796139,0.00852635,3163.6,3163.5,0.04066394]
[1642551796735,0.00852635,3163.6,3163.5,4.33465087]
[1642551798284,0.00852635,3163.6,3163.5,2.72599353]
[1642551798884,0.00852635,3163.6,3163.5,4.33461687]
[1642551799486,0.00852635,3163.6,3163.5,0.04066394]
[1642551800288,0.00852635,3163.6,3163.5,2.72599353]
[1642551803435,0.00852635,3163.6,3163.5,5.11281635]
[1642551805881,0.1264,3164.0,3163.5,5.11281635]
[1642551806082,0.1264,3164.1,3163.6,2.55250646]
[1642551806282,0.01023162,3163.9,3163.5,5.11281635]
[1642551806486,0.01023162,3163.9,3163.6,2.54519175]
[1642551806682,0.00966319,3163.8,3163.7,1.60737918]
[1642551807084,0.01080004,3163.8,3163.7,1.60737918]
[1642551808091,0.01080004,3163.8,3163.7,4.29270877]
[1642551810734,0.01080004,3163.8,3163.7,2.68532959]
[1642551811637,0.01080004,3163.8,3163.7,4.29270877]
[1642551814191,0.01080004,3163.8,3163.7,2.68532959]
[1642551815089,0.01080004,3163.8,3163.7,4.29206353]
[1642551816333,0.01080004,3163.8,3163.7,2.68532959]
[1642551817234,0.01080004,3163.8,3163.7,4.29206353]
[1642551818936,0.01080004,3163.8,3163.7,2.68532959]
[1642551819780,0.01080004,3163.8,3163.7,4.29206353]
[1642551820579,0.01080004,3163.8,3163.7,2.68532959]
[1642551821181,0.01080004,3163.8,3163.7,4.29206353]
[1642551822383,0.80132004,3163.8,3163.7,4.29206353]
[1642551822583,1.55632004,3163.8,3163.7,4.29206353]
[1642551822783,5.15,3163.7,3163.6,1.64739788]
[1642551822982,5.605,3163.7,3163.6,1.64739788]
[1642551823183,6.61409477,3163.7,3163.6,1.64739788]
[1642551823432,6.91409477,3163.7,3163.6,0.48946636]
[1642551823632,6.91409477,3163.7,3163.4,2.38969022]
[1642551823833,5.16418927,3163.5,3163.4,0.0028674]
[1642551824034,6.91918927,3163.5,3163.4,0.0028674]
[1642551824236,6.92714719,3163.5,3163.4,0.0028674]
[1642551824638,3.32714719,3163.5,3163.4,0.0028674]
[1642551824835,3.66033869,3163.5,3163.4,0.0028674]
[1642551825836,7.01033869,3163.5,3163.4,0.0028674]
[1642551826237,3.78673869,3163.5,3163.4,0.0028674]
[1642551828288,2.22254942,3163.5,3163.4,0.0028674]
[1642551828887,2.12254942,3163.5,3163.4,0.0028674]
[1642551829687,4.62254942,3163.5,3163.4,0.0028674]
[1642551830388,3.34540141,3163.5,3163.4,0.0028674]
[1642551830931,3.21900141,3163.5,3163.4,0.0028674]
[1642551831631,5.66900141,3163.5,3163.4,0.0028674]
[1642551831834,5.79540141,3163.5,3163.4,0.0028674]
[1642551832437,5.87323981,3163.5,3163.4,0.0028674]
[1642551832635,5.87323981,3163.5,3163.3,0.0018165]
[1642551832636,5.15,3163.4,3163.3,0.0018165]
[1642551832838,29.51656193,3163.4,3163.3,0.0018165]
[1642551833039,26.5371179,3163.4,3163.3,0.0018165]
[1642551833237,5.15,3163.3,3162.8,0.00431978]
[1642551833436,1.3724,3163.2,3162.8,0.00431978]
[1642551833637,5.15,3163.1,3162.7,1.50906488]
[1642551833837,5.15,3163.1,3162.6,0.0018265]
[1642551833838,1.3724,3163.0,3162.6,0.0018265]
[1642551834038,2.55111581,3163.0,3162.6,0.0018265]
[1642551834238,0.08238578,3162.9,3162.6,0.0018265]
[1642551834437,0.66378578,3162.9,3162.6,0.0018265]
[1642551834681,1.58599896,3162.8,3162.6,0.0018265]
[1642551834882,0.3,3162.7,3162.6,0.0018265]
[1642551835089,5.45341054,3162.7,3162.6,0.0018265]
[1642551835486,6.45341054,3162.7,3162.6,0.0018265]
[1642551837187,1.30341054,3162.7,3162.6,0.0018265]
[1642551837987,0.30341054,3162.7,3162.6,0.0018265]
[1642551839435,0.00341054,3162.7,3162.6,0.0018265]
[1642551844588,0.00341054,3162.7,3162.6,11.54250689]
[1642551844789,0.47241144,3163.7,3163.2,1.4345212]
[1642551845190,0.00511581,3163.6,3163.2,1.4345212]
[1642551845590,2.7595,3163.8,3163.2,1.4345212]
[1642551845591,0.00454738,3163.5,3163.2,1.4345212]
[1642551845834,0.00454738,3163.5,3163.2,1.6887212]
[1642551846036,1.7595,3163.8,3163.2,1.6887212]
[1642551846037,0.00397896,3163.4,3163.2,1.9436212]
[1642551846436,0.00341054,3163.3,3163.2,1.9436212]
[1642551846837,0.00341054,3163.3,3163.2,1.6894212]
[1642551847240,0.00341054,3163.3,3163.2,1.4345212]
[1642551848440,0.00341054,3163.3,3163.0,1.5991822]
[1642551848841,0.00284211,3163.2,3163.0,1.5991822]
[1642551849241,0.00227369,3163.1,3163.0,1.5991822]
[1642551849441,0.00227369,3163.1,3163.0,5.2491822]
[1642551849683,0.00227369,3163.1,3163.0,6.6593601]
[1642551850689,0.00227369,3163.1,3163.0,1.4101779]
[1642551851589,0.00227369,3163.1,3163.0,4.1601779]
[1642551852288,0.00227369,3163.1,3163.0,6.5589512]
[1642551854139,0.00227369,3163.1,3163.0,2.3987733]
[1642551855845,0.00227369,3163.1,3162.9,1.60726395]
[1642551856243,0.00170527,3163.0,3162.9,1.60726395]
[1642551856643,0.00170527,3163.0,3162.9,0.00682108]
[1642551857482,0.00170527,3163.0,3162.9,2.60682108]
[1642551859290,0.00170527,3163.0,3162.9,5.00559438]
[1642551859686,0.00170527,3163.0,3162.9,5.79600438]
[1642551860287,0.00170527,3163.0,3162.9,3.39723108]
[1642551860487,0.1264,3164.0,3163.0,5.15]
[1642551860686,0.1264,3164.0,3163.1,1.98144897]
[1642551860937,0.00511581,3163.9,3163.1,1.98144897]
[1642551861338,0.00454738,3163.8,3163.1,1.98144897]
[1642551861537,0.00454738,3163.8,3162.9,2.84268687]
[1642551861734,0.00397896,3163.7,3162.9,2.84268687]
[1642551861935,0.00397896,3163.7,3163.2,2.68516161]
[1642551862134,0.00341054,3163.6,3163.2,2.68516161]
[1642551862538,0.00284211,3163.5,3163.2,2.68516161]
[1642551862740,0.00284211,3163.5,3163.1,2.70301705]
[1642551862940,0.00227369,3163.4,3163.1,2.70301705]
[1642551863238,0.00170527,3163.3,3163.2,0.03]
[1642551863438,0.00170527,3163.3,3163.2,2.71516161]
[1642551863641,0.00170527,3163.3,3163.2,5.06516161]
[1642551865185,0.00170527,3163.3,3163.2,2.71516161]
[1642551873593,0.00170527,3163.3,3163.2,2.68516161]
[1642551875395,0.00170527,3163.3,3163.0,4.28610636]
[1642551875835,0.00113684,3163.2,3163.0,4.28610636]
[1642551876235,0.00170527,3163.3,3163.0,4.28610636]
[1642551876640,0.00113684,3163.2,3163.0,4.28610636]
[1642551877036,0.00170527,3163.3,3163.0,4.28610636]
[1642551877438,0.00113684,3163.2,3163.0,4.28610636]
[1642551877641,0.00113684,3163.2,3163.0,1.60094475]
[1642551878339,1.1264,3164.0,3163.2,3.45227368]
[1642551878541,1.4264,3164.0,3163.2,0.00227368]
[1642551878741,0.00397897,3163.9,3163.2,0.00227368]
[1642551879146,0.00341054,3163.8,3163.2,0.00227368]
[1642551879598,0.00284212,3163.7,3163.2,1.60376005]
[1642551879991,0.0022737,3163.6,3163.2,1.60376005]
[1642551880291,0.00170527,3163.5,3163.2,1.60376005]
[1642551880591,0.00113685,3163.4,3163.2,1.60376005]
[1642551880994,0.00284212,3163.7,3163.2,1.60376005]
[1642551881396,0.0022737,3163.6,3163.2,1.60376005]
[1642551881795,0.00170527,3163.5,3163.2,1.60376005]
[1642551882198,0.00113685,3163.4,3163.2,1.60376005]
[1642551882595,2.18095,3163.8,3163.2,1.60376005]
[1642551882596,0.00284212,3163.7,3163.2,1.60376005]
[1642551882995,0.0022737,3163.6,3163.2,0.00227368]
[1642551883437,0.00170527,3163.5,3163.2,0.00227368]
[1642551883836,0.00113685,3163.4,3163.2,2.40089073]
[1642551884237,0.00284212,3163.7,3163.2,2.40089073]
[1642551884637,0.0022737,3163.6,3163.2,2.40089073]
[1642551885038,0.00170527,3163.5,3163.2,2.40089073]
[1642551885437,0.00113685,3163.4,3163.2,2.40089073]
[1642551885838,0.00284212,3163.7,3163.2,2.40089073]
[1642551886238,0.0022737,3163.6,3163.3,2.39861705]
[1642551886638,0.00170527,3163.5,3163.3,2.39861705]
[1642551887098,0.79049,3163.9,3163.3,2.39861705]
[1642551887099,0.00113685,3163.4,3163.3,2.39861705]
[1642551889292,0.00113685,3163.4,3163.2,3.20485162]
[1642551890100,0.00113685,3163.4,3163.3,2.68527093]
[1642551890937,0.00113685,3163.4,3163.2,3.20485162]
[1642551891339,0.00113685,3163.4,3163.3,2.68527093]
[1642551891936,0.00113685,3163.4,3163.2,3.20485162]
[1642551893442,5.56761931,3164.1,3163.3,3.55]
[1642551893642,0.6,3164.1,3163.3,3.55]
[1642551893842,0.00284212,3163.9,3163.2,3.20485162]
[1642551894243,0.00227369,3163.8,3163.2,3.20485162]
[1642551894711,0.00170527,3163.7,3163.2,3.20485162]
[1642551894902,0.00170527,3163.7,3163.4,2.41309778]
[1642551895102,0.00113685,3163.6,3163.4,2.41309778]
[1642551896302,0.00113685,3163.6,3163.4,3.20257794]
[1642551897105,0.00113685,3163.6,3163.3,3.20257794]
[1642551898538,0.00113685,3163.6,3163.2,0.00227368]
[1642551898539,0.00113685,3163.6,3163.4,3.20257794]
[1642551899643,0.00113685,3163.6,3163.3,3.20257794]
[1642551899845,0.00113685,3163.6,3163.5,5.3081]
[1642551900047,0.00113685,3163.6,3163.5,6.7229]
[1642551900243,0.00113685,3163.6,3163.5,7.7229]
[1642551900443,0.0032552,3164.5,3163.7,0.0022737]
[1642551900846,0.00454738,3164.4,3164.2,1.2323547]
[1642551901246,0.00397896,3164.3,3164.2,1.2323547]
[1642551902085,0.00397896,3164.3,3163.7,2.89837262]
[1642551902287,0.00397896,3164.3,3164.2,2.68527093]
[1642551902488,0.0032552,3164.5,3164.2,2.68527093]
[1642551902890,0.00454738,3164.4,3164.2,2.68527093]
[1642551903086,0.00454738,3164.4,3164.1,2.5530448]
[1642551903087,0.00454738,3164.4,3164.0,2.41022019]
[1642551903286,0.00397896,3164.3,3164.0,2.41022019]
[1642551903691,0.00341054,3164.2,3164.0,2.41022019]
[1642551903889,0.00341054,3164.2,3163.8,5.90185118]
[1642551903890,0.00341054,3164.2,3164.1,1.60694322]
[1642551904090,1.58072,3164.3,3164.1,1.60694322]
[1642551904391,0.3,3164.2,3164.1,1.60694322]
[1642551904791,0.3,3164.2,3164.0,1.60694322]
[1642551905196,0.00284211,3164.1,3164.0,1.60694322]
[1642551906440,0.30284211,3164.1,3164.0,1.60694322]
[1642551906840,0.42924211,3164.1,3164.0,1.60694322]
[1642551907443,0.42924211,3164.1,3163.8,4.29221415]
[1642551907444,0.79046,3164.0,3163.8,4.29221415]
[1642551907643,0.1264,3163.9,3163.8,4.29221415]
[1642551907845,0.12810527,3163.9,3163.8,4.29221415]